bitfinex-derivatives/quotes_ETHF0:USTF0_20250726
["timestamp","ask_amount","ask_price","bid_price","bid_amount"]
[1753496843102,0.53403,3744.3,3744.2,6.35109533]
[1753496843303,0.53401,3744.4,3744.3,6.3324]
[1753496844110,0.53401,3744.4,3744.3,6.86643]
[1753496844311,0.53401,3744.4,3744.3,6.3324]
[1753496845813,3.74181,3744.4,3744.3,6.3324]
[1753496846410,10.00511,3744.4,3744.3,6.3324]
[1753496846713,6.29491,3744.4,3744.3,6.3324]
[1753496847110,10.00511,3744.4,3744.3,6.3324]
[1753496849014,7.19461,3744.4,3744.3,6.3324]
[1753496850206,10.00511,3744.4,3744.3,6.3324]
[1753496851003,4.6464,3745.6,3745.5,1.6049]
[1753496851204,4.7536,3745.6,3745.5,5.768]
[1753496851409,3.2078,3745.6,3745.5,6.30186]
[1753496851916,10.00494,3745.6,3745.5,5.768]
[1753496852211,6.7972,3745.2,3745.1,1.6049]
[1753496852409,10.005,3745.2,3745.1,1.6049]
[1753496853408,3.08709,3744.6,3744.5,2.4828]
[1753496853616,6.79729,3744.6,3744.5,5.768]
[1753496853815,5.35869,3744.6,3744.5,5.768]
[1753496854415,6.79729,3744.6,3744.5,3.1351]
[1753496856107,6.79729,3744.6,3744.5,4.8049]
[1753496856914,6.79729,3744.6,3744.5,5.7211]
[1753496866828,6.81083,3744.3,3744.2,0.01869533]
[1753496867119,6.81083,3744.3,3744.2,2.46239533]
[1753496867327,6.81083,3744.3,3744.2,5.64469533]
[1753496868322,2.2571,3744.6,3744.5,2.4437]
[1753496868522,2.02747,3744.7,3744.6,5.626]
[1753496868926,3.2078,3745.0,3744.9,5.626]
[1753496869225,3.2078,3745.0,3744.9,6.15994]
[1753496869416,12.578,3745.3,3744.9,2.4437]
[1753496869620,0.53389,3745.3,3745.2,5.626]
[1753496870321,2.02739,3745.3,3745.2,5.626]
[1753496870624,3.39399,3745.3,3745.2,5.626]
[1753496871824,3.00909,3745.3,3745.2,5.626]
[1753496872925,4.37569,3745.3,3745.2,5.626]
[1753496873125,5.26619,3745.3,3745.2,5.626]
[1753496873924,6.81069,3745.3,3745.2,5.626]
[1753496874124,10.01844,3745.6,3745.5,2.4437]
[1753496874431,3.2078,3745.6,3745.5,6.15986]
[1753496874824,0.53383,3745.7,3745.6,5.626]
[1753496875227,2.80291,3745.9,3745.8,5.626]
[1753496875423,3.37425619,3745.9,3745.8,5.626]
[1753496875619,3.96525619,3745.9,3745.8,5.626]
[1753496875823,7.38195619,3745.9,3745.8,1.5275]
[1753496876030,6.81064,3745.6,3745.5,5.626]
[1753496876228,7.38198619,3745.6,3745.5,5.626]
[1753496876427,6.81064,3745.6,3745.5,5.626]
[1753496876628,7.38197843,3745.6,3745.5,5.626]
[1753496879627,5.83747843,3745.6,3745.5,5.626]
[1753496879828,3.04653843,3745.6,3745.5,5.626]
[1753496880033,3.00904,3745.6,3745.5,5.626]
[1753496880232,3.2078,3745.7,3745.6,3.1823]
[1753496880433,3.2078,3745.7,3745.6,5.626]
[1753496880633,3.74163,3745.7,3745.6,5.626]
[1753496880835,10.01843,3745.7,3745.6,5.626]
[1753496881229,7.1006,3745.7,3745.6,5.626]
[1753496881532,2.62063,3747.1,3747.0,6.2049]
[1753496881736,0.57101636,3747.1,3747.0,6.2049]
[1753496881939,1.10464636,3747.1,3747.0,6.2049]
[1753496882139,3.19164636,3747.1,3747.0,6.2049]
[1753496882540,1.10464636,3747.1,3747.0,6.2049]
[1753496882737,0.57101636,3747.1,3747.0,6.2049]
[1753496882930,2.00714636,3747.1,3747.0,6.2049]
[1753496883134,2.59814636,3747.1,3747.0,6.2049]
[1753496883341,3.96474636,3747.1,3747.0,6.2049]
[1753496883945,1.47351636,3747.1,3747.0,6.2049]
[1753496884144,1.47351636,3747.1,3747.0,6.73854]
[1753496884335,1.47351636,3747.1,3747.0,6.2049]
[1753496884336,0.57101636,3747.1,3747.0,6.2049]
[1753496884638,0.57101636,3747.1,3747.0,7.46868635]
[1753496884836,0.2,3747.9,3747.8,6.2049]
[1753496885031,2.287,3747.9,3747.5,5.5841]
[1753496885241,4.6948,3747.6,3747.5,7.2008]
[1753496885442,4.6948,3747.6,3747.5,4.8657]
[1753496885443,5.22836,3747.6,3747.5,4.8657]
[1753496885638,5.22836,3747.6,3747.5,6.1775]
[1753496886045,3.5403,3747.3,3747.2,1.4928]
[1753496886239,3.8211,3747.1,3747.0,3.1095]
[1753496886444,5.22843,3747.1,3747.0,4.8657]
[1753496886741,5.22843,3747.1,3746.8,2.9285]
[1753496886742,2.62656,3746.9,3746.8,2.9285]
[1753496887044,2.6266,3746.6,3746.5,9.3853]
[1753496887242,3.9861,3746.6,3746.5,6.1775]
[1753496887438,5.2285,3746.6,3746.5,4.8657]
[1753496887836,5.2285,3746.6,3746.5,3.993]
[1753496888944,5.2285,3746.6,3746.2,6.1775]
[1753496888945,2.99534,3746.3,3746.2,6.1775]
[1753496889140,5.22854,3746.3,3746.2,1.4928]
[1753496889346,3.98618,3746.0,3745.9,9.3853]
[1753496890652,4.35488,3746.0,3745.9,9.3853]
[1753496891651,5.22858,3746.0,3745.9,9.3853]
[1753496892746,4.35488,3746.0,3745.9,9.3853]
[1753496893149,3.8211,3746.6,3746.5,2.4894]
[1753496893349,3.9861,3746.6,3746.5,6.1775]
[1753496893545,5.22854,3746.3,3746.2,4.8657]
[1753496894646,4.35484,3746.3,3746.2,4.8657]
[1753496894848,3.39724,3746.3,3746.2,6.1775]
[1753496895946,3.98614,3746.3,3746.2,6.1775]
[1753496896153,4.35484,3746.3,3746.2,6.1775]
[1753496896450,3.98614,3746.3,3746.2,6.1775]
[1753496897454,0.53374,3746.3,3746.2,6.1775]
[1753496897649,2.03774,3746.3,3746.2,6.1775]
[1753496897844,3.39724,3746.3,3746.2,6.1775]
[1753496899156,3.98614,3746.3,3746.2,6.1775]
[1753496899752,3.98614,3746.3,3746.2,3.993]
[1753496899753,5.22854,3746.3,3746.2,3.993]
[1753496900058,3.98618,3746.0,3745.9,9.3853]
[1753496900448,3.98618,3746.0,3745.9,9.9191]
[1753496901154,0.53378,3746.0,3745.9,9.9191]
[1753496901652,0.53378,3746.0,3745.9,9.3853]
[1753496902247,0.53378,3746.0,3745.9,9.9191]
[1753496902754,0.53378,3746.0,3745.9,9.3853]
[1753496903353,0.53378,3746.0,3745.9,9.9191]
[1753496903656,2.03778,3746.0,3745.9,9.3853]
[1753496903849,4.35488,3746.0,3745.9,9.3853]
[1753496904659,5.22858,3746.0,3745.9,9.3853]
[1753496906063,5.22858,3746.0,3745.9,3.2078]
[1753496906263,2.62673,3745.7,3745.6,6.1775]
[1753496906457,5.22863,3745.7,3745.6,3.993]
[1753496906863,5.22863,3745.7,3745.6,1.4928]
[1753496907163,5.22863,3745.7,3745.3,6.1775]
[1753496907164,5.22867,3745.4,3745.3,6.1775]
[1753496907360,3.39741,3745.1,3745.0,9.3853]
[1753496907760,4.35501,3745.1,3745.0,9.3853]
[1753496907964,5.22871,3745.1,3745.0,8.0735]
[1753496910665,5.22871,3745.1,3745.0,9.3853]
[1753496911272,5.22871,3745.1,3745.0,6.1775]
[1753496922482,3.98631,3745.1,3745.0,6.1775]
[1753496922685,0.53391,3745.1,3745.0,6.1775]
[1753496923577,1.47281,3745.1,3745.0,6.1775]
[1753496923778,0.53383,3745.7,3745.0,6.1775]
[1753496923779,1.43637188,3746.8,3746.5,2.5225]
[1753496923984,0.9389,3746.9,3746.8,6.69986]
[1753496924180,0.57036788,3746.9,3746.8,6.69987]
[1753496924382,1.43637188,3747.7,3747.6,4.5322]
[1753496924681,1.43637188,3747.8,3747.7,3.4444]
[1753496924881,4.33257188,3747.8,3747.7,6.50044]
[1753496925082,4.33257188,3747.8,3747.7,5.9669]
[1753496925282,6.25187188,3747.8,3747.7,5.9669]
[1753496925483,7.47517188,3747.8,3747.7,5.9669]
[1753496926088,6.57233,3747.8,3747.7,5.9669]
[1753496926291,6.0388,3747.8,3747.7,5.9669]
[1753496926592,6.57233,3747.8,3747.7,5.9669]
[1753496926787,6.57233,3747.8,3747.7,3.0679]
[1753496926985,0.2,3747.9,3747.7,3.0679]
[1753496926986,0.2,3747.9,3747.7,2.5225]
[1753496927189,0.2,3747.9,3747.8,10.43837635]
[1753496927885,0.2,3747.9,3747.8,9.70823]
[1753496928094,5.0155,3747.9,3747.8,9.1747]
[1753496928599,0.2,3747.9,3747.8,9.1747]
[1753496929393,0.2,3747.9,3747.8,9.70823]
[1753496929697,0.2,3747.9,3747.8,9.1747]
[1753496929891,0.2,3747.9,3747.8,9.70823]
[1753496930192,0.53342,3748.6,3748.2,0.53347]
[1753496930388,0.53342,3748.6,3748.5,5.7303]
[1753496930604,0.53342,3748.6,3748.5,8.9728]
[1753496930812,2.05472,3748.6,3748.5,8.9728]
[1753496931107,4.34192,3748.6,3748.5,8.9728]
[1753496931510,5.34892,3748.6,3748.5,3.0679]
[1753496931712,2.05477,3748.2,3748.1,7.5381]
[1753496931912,6.57017,3748.2,3748.1,6.2757]
[1753496932211,6.57021,3747.9,3747.8,3.0679]
[1753496932409,6.57021,3747.9,3747.8,2.4564]
[1753496932410,7.30035635,3747.9,3747.8,2.4564]
[1753496932709,7.30035635,3747.9,3747.6,4.2295]
[1753496932710,3.97414,3747.7,3747.6,4.2295]
[1753496932913,4.34204,3747.7,3747.6,8.9728]
[1753496933108,3.75964,3747.7,3747.6,8.9728]
[1753496933611,4.34204,3747.7,3747.6,8.9728]
[1753496934413,6.57024,3747.7,3747.6,8.9728]
[1753496936818,1.3749,3748.1,3747.8,5.765]
[1753496937013,0.53347,3748.2,3748.1,5.765]
[1753496937218,0.53347,3748.2,3748.1,2.5225]
[1753496937408,0.53347,3748.3,3748.2,4.856]
[1753496937612,0.53347,3748.3,3748.2,5.765]
[1753496938012,2.05477,3748.3,3748.2,5.765]
[1753496938217,4.34197,3748.3,3748.2,5.765]
[1753496941323,6.57017,3748.3,3748.2,3.0679]
[1753496941723,3.06181,3747.9,3747.8,2.4564]
[1753496941916,6.57021,3747.9,3747.8,2.4564]
[1753496942122,6.57021,3747.9,3747.8,4.8757]
[1753496942321,6.57021,3747.9,3747.8,5.765]
[1753496942720,6.57021,3747.9,3747.8,4.8662]
[1753496942921,6.57024,3747.7,3747.6,6.2757]
[1753496943722,6.57024,3747.7,3747.6,4.2295]
[1753496944924,6.57024,3747.7,3747.6,3.2078]
[1753496947928,6.57024,3747.7,3746.9,0.53365]
[1753496947929,6.46463,3747.1,3747.0,6.3112]
[1753496948632,6.46463,3747.1,3747.0,3.2078]
[1753496949025,6.46468,3746.7,3746.6,3.1034]
[1753496950926,0.53375,3746.2,3746.1,8.01757]
[1753496951322,0.53375,3746.2,3746.1,8.34709724]
[1753496951630,0.53375,3746.2,3746.1,9.29382724]
[1753496952232,0.53375,3746.2,3746.1,9.82758724]
[1753496952833,0.53375,3746.2,3746.1,9.29382724]
[1753496952834,1.99865,3746.2,3746.1,9.29382724]
[1753496953029,5.24315,3746.2,3746.1,6.08602724]
[1753496954234,5.24315,3746.2,3746.1,4.31772724]
[1753496954235,6.46475,3746.2,3746.1,4.31772724]
[1753496954428,6.46475,3746.2,3746.1,6.08602724]
[1753496954730,6.46475,3746.2,3746.1,3.43292724]
[1753496954936,6.46475,3746.2,3746.1,2.81802724]
[1753496955337,0.8969,3746.5,3746.1,3.37167245]
[1753496955633,6.46465,3746.9,3746.8,1.6229]
[1753496956134,6.46465,3746.9,3746.8,3.1034]
[1753496956841,6.46465,3746.9,3746.8,5.7565]
[1753496957232,6.46465,3746.9,3746.5,0.53371]
[1753496957233,2.97559,3746.6,3746.5,1.4805]
[1753496957434,6.46469,3746.6,3746.5,4.8717]
[1753496958139,6.46464,3747.0,3746.9,5.7565]
[1753496958634,3.36914,3747.0,3746.9,5.7565]
[1753496958843,1.40604,3747.0,3746.9,5.7565]
[1753496959146,14.4555,3747.3,3747.2,6.29011]
[1753496959147,2.3618,3747.3,3747.2,6.29011]
[1753496959338,13.7989,3747.3,3747.2,6.29011]
[1753496959534,13.7989,3747.3,3747.2,6.61996978]
[1753496959735,0.53359,3747.4,3747.3,3.04129]
[1753496959933,0.53359,3747.4,3747.3,6.29009]
[1753496960128,1.99849,3747.4,3747.3,6.61997823]
[1753496960840,4.26599,3747.4,3747.3,6.29009]
[1753496961238,3.7324,3747.4,3747.3,6.29009]
[1753496961439,3.36908,3747.4,3747.3,6.29009]
[1753496961641,2.8355,3747.4,3747.3,6.62003855]
[1753496961842,0.8969,3747.7,3747.6,2.5077]
[1753496962043,2.89534,3747.7,3747.6,5.7565]
[1753496962241,4.26594,3747.7,3747.6,5.7565]
[1753496962441,5.24294,3747.7,3747.6,5.7565]
[1753496962948,6.46454,3747.7,3747.6,5.7565]
[1753496965552,0.53354,3747.7,3747.6,5.7565]
[1753496966253,1.99844,3747.7,3747.6,5.7565]
[1753496966446,16.57794,3747.7,3747.6,5.7565]
[1753496966652,17.55494,3747.7,3747.6,5.7565]
[1753496966853,16.57794,3747.7,3747.6,5.7565]
[1753496967052,17.55494,3747.7,3747.6,5.7565]
[1753496967453,16.57794,3747.7,3747.6,5.7565]
[1753496967650,16.57794,3747.7,3747.6,6.0866287]
[1753496967850,16.57794,3747.7,3747.6,5.7565]
[1753496968046,1.99841,3747.9,3747.8,2.5077]
[1753496968253,3.36901,3747.9,3747.8,5.7565]
[1753496968652,4.26591,3747.9,3747.8,5.7565]
[1753496969046,5.24291,3747.9,3747.8,5.7565]
[1753496970557,1.2216,3748.2,3747.8,5.7565]
[1753496970558,0.5335,3748.0,3747.8,5.7565]
[1753496970759,17.255,3748.2,3748.1,5.7565]
[1753496970954,2.97542,3747.8,3747.7,4.6883]
[1753496971154,2.97547,3747.5,3747.4,4.8573]
[1753496971353,6.46457,3747.5,3747.4,6.08686582]
[1753496971554,6.46457,3747.5,3747.4,0.33036582]
[1753496971952,6.46457,3747.5,3747.4,4.60636582]
[1753496972254,6.46457,3747.5,3747.4,6.08686582]
[1753496972657,6.46457,3747.5,3747.4,3.43376582]
[1753496972862,6.46467,3746.8,3746.7,3.3912]
[1753496973056,0.53366,3746.9,3746.7,2.83816441]
[1753496973254,1.40603,3747.1,3747.0,2.5077]
[1753496973452,0.53363,3747.1,3747.0,6.08696441]
[1753496973957,5.24303,3747.1,3747.0,6.08696441]
[1753496974152,6.46463,3747.1,3747.0,2.81896441]
[1753496974359,6.46463,3747.1,3747.0,0.33046441]
[1753496978964,12.1945064,3747.1,3747.0,0.33046441]
[1753496979369,7.1945064,3747.1,3747.0,0.33046441]
[1753496979570,6.49875,3746.9,3746.8,1.5058]
[1753496979758,18.77475,3746.9,3746.8,0.3308409]
[1753496981166,18.77475,3746.9,3746.8,1.8366409]
[1753496981469,18.77475,3746.9,3746.8,2.4861]
[1753496981662,18.77475,3746.9,3746.8,3.0713]
[1753496981858,17.55275,3746.9,3746.8,5.7475]
[1753496982063,18.77475,3746.9,3746.8,2.4861]
[1753496982363,18.77475,3746.9,3746.8,0.9803]
[1753496982558,18.77475,3746.9,3746.8,2.4861]
[1753496984464,18.2411,3746.9,3746.5,1.8074]
[1753496984670,6.49879,3746.6,3746.5,4.8787]
[1753496985972,18.75679,3746.6,3746.5,4.8787]
[1753496986373,18.75679,3746.6,3746.5,5.7475]
[1753496987771,18.75179,3746.6,3746.5,5.7475]
[1753496988276,17.52979,3746.6,3746.5,5.7475]
[1753496989374,5.27679,3746.6,3746.5,5.7475]
[1753496989568,3.2078,3746.8,3746.7,4.77538]
[1753496989773,12.247,3746.9,3746.8,2.96797]
[1753496990071,12.247,3746.9,3746.8,6.28117]
[1753496990572,0.53355,3747.7,3747.1,2.4343]
[1753496990877,0.53355,3747.7,3747.6,5.7475]
[1753496991082,12.77555,3747.7,3747.6,5.7475]
[1753496991369,18.99725,3747.7,3747.6,5.7475]
[1753496991765,0.53353,3747.8,3747.6,4.8396]
[1753496991968,0.53353,3747.8,3747.7,5.7475]
[1753496992570,3.90503,3747.8,3747.7,5.7475]
[1753496992772,6.75523,3747.8,3747.7,5.7475]
[1753496992974,6.75523,3747.8,3747.7,0.9803]
[1753496993178,6.75523,3747.8,3747.7,3.0713]
[1753496993666,6.75528,3747.4,3747.3,4.8787]
[1753496993868,6.75528,3747.4,3747.3,5.7475]
[1753496994069,3.41228,3747.4,3747.3,5.7475]
[1753496994271,2.04068,3747.4,3747.3,5.7475]
[1753496995077,5.27668,3747.4,3747.3,5.7475]
[1753496995976,17.50968,3747.4,3747.3,5.7475]
[1753496996981,18.98828,3747.4,3747.3,5.7475]
[1753496997276,18.98828,3747.4,3747.3,3.9401]
[1753496997472,18.98828,3747.4,3747.3,3.0713]
[1753496998073,18.98828,3747.4,3747.0,4.88]
[1753496998074,3.03722,3747.1,3747.0,4.88]
[1753496998269,4.7431,3748.6,3748.5,2.4343]
[1753496998472,5.27651,3748.6,3748.5,5.7488]
[1753496998673,17.49651,3748.6,3748.5,5.7488]
[1753496999074,18.97511,3748.6,3748.5,5.7488]
[1753496999279,6.75511,3748.6,3748.5,5.7488]
[1753496999579,18.97311,3748.6,3748.5,5.7488]
[1753496999777,19.7029864,3748.6,3748.5,3.0713]
[1753496999980,19.6999864,3748.6,3748.5,3.0713]
[1753497000679,19.6999864,3748.6,3748.2,1.8087]
[1753497000680,6.75515,3748.3,3748.2,4.88]
[1753497000874,6.75515,3748.3,3748.2,3.0713]
[1753497001075,5.27655,3748.3,3748.2,5.7488]
[1753497001278,0.53342,3748.6,3748.4,0.53343]
[1753497001478,12.74542,3748.5,3748.4,4.77643]
[1753497001679,12.211,3748.5,3748.4,2.96773]
[1753497001875,0.5334,3748.7,3748.5,2.4343]
[1753497002074,5.98069,3748.8,3748.6,0.5334]
[1753497002387,7.48779,3748.8,3748.7,6.28219]
[1753497002681,5.24829,3748.8,3748.7,6.28219]
[1753497002880,4.0941,3748.8,3748.7,6.28219]
[1753497003083,15.4138,3748.8,3748.7,6.28219]
[1753497003479,3.74118,3748.8,3748.7,6.28219]
[1753497003676,15.4138,3748.8,3748.7,6.28219]
[1753497003873,3.2078,3748.8,3748.7,6.28219]
[1753497004280,15.4108,3748.8,3748.7,6.28219]
[1753497004482,3.2078,3748.8,3748.7,6.28219]
[1753497004785,0.05,3749.0,3748.9,4.51257]
[1753497008884,6.76105,3749.0,3748.9,3.0713]
[1753497009084,6.71109,3748.7,3748.6,3.0549]
[1753497009584,6.71109,3748.7,3748.6,3.9923]
[1753497009981,6.71109,3748.7,3748.6,3.0549]
[1753497010787,6.71115,3748.3,3748.2,7.2001]
[1753497010985,18.89615,3748.3,3748.2,3.2078]
[1753497012285,18.89615,3748.3,3747.6,5.5757]
[1753497012488,6.71124,3747.7,3747.6,6.2627]
[1753497012789,6.71124,3747.7,3747.3,0.53358]
[1753497012790,6.71128,3747.4,3747.3,2.5618]
[1753497013087,6.71128,3747.4,3747.3,3.9923]
[1753497013483,6.71128,3747.4,3747.3,1.0414]
[1753497013990,6.71128,3747.4,3747.3,1.6244]
[1753497014191,6.71128,3747.4,3747.3,3.0549]
[1753497014489,6.71137,3746.8,3746.7,3.0549]
[1753497014691,17.39207,3746.8,3746.7,3.9923]
[1753497015089,17.39207,3746.8,3746.6,3.2078]
[1753497015090,6.71138,3746.7,3746.6,3.2078]
[1753497015290,3.8354,3746.4,3746.3,2.5618]
[1753497015481,3.8354,3746.4,3746.3,2.88759029]
[1753497015687,4.6854,3746.4,3746.3,3.9923]
[1753497015888,2.8256,3746.4,3746.3,2.05414]
[1753497016094,0.8782,3746.4,3746.3,4.52604]
[1753497016493,0.8782,3746.4,3746.3,4.85183007]
[1753497017894,1.4636,3746.4,3746.3,4.85183007]
[1753497018094,3.6756,3746.4,3746.3,4.85183007]
[1753497019391,3.6756,3746.4,3746.3,4.52604]
[1753497019598,6.1777,3746.4,3746.3,4.52604]
[1753497020390,4.6854,3746.4,3746.3,3.9923]
[1753497020595,4.6854,3746.4,3746.1,3.2078]
[1753497020596,0.53375,3746.2,3746.1,3.2078]
[1753497020799,3.00715,3746.2,3746.1,4.8322]
[1753497020998,6.71145,3746.2,3746.1,6.2627]
[1753497021203,6.71145,3746.2,3746.1,3.2078]
[1753497021894,6.71145,3746.2,3745.8,0.19755196]
[1753497021895,3.00719,3745.9,3745.8,0.19755196]
[1753497022102,6.71149,3745.9,3745.8,0.19755196]
[1753497023312,11.71149,3745.9,3745.8,0.19755196]
[1753497023610,6.71158,3745.3,3745.2,3.0549]
[1753497023809,6.1777,3745.3,3745.2,1.0414]
[1753497024008,6.1777,3745.2,3745.1,0.5339]
[1753497024403,6.1777,3745.2,3745.1,3.5888]
[1753497025105,12.152,3746.1,3745.9,3.9923]
[1753497025303,3.0902,3746.3,3746.2,2.15815]
[1753497025503,3.6756,3746.3,3746.2,4.52605]
[1753497025800,1.4636,3746.3,3746.2,4.52605]
[1753497026003,1.4636,3746.3,3745.7,3.2078]
[1753497026004,3.7043,3746.2,3745.7,3.2078]
[1753497026200,6.1777,3745.5,3745.4,5.75516]
[1753497026405,18.3237,3745.5,3745.4,7.12167801]
[1753497026711,18.3237,3745.5,3745.4,8.05907801]
[1753497027407,18.3237,3745.5,3745.4,8.05904846]
[1753497028104,18.3237,3745.5,3745.4,7.73396]
[1753497029002,0.8782,3745.9,3745.8,2.5618]
[1753497029203,15.1471,3746.6,3746.5,3.0549]
[1753497029403,18.8514,3746.6,3746.5,3.0549]
[1753497029605,23.067,3747.0,3746.9,0.53365]
[1753497029807,36.6686,3747.0,3746.9,4.52595]
[1753497030010,40.90654,3747.0,3746.9,3.0549]
[1753497030311,40.90654,3747.0,3745.7,1.53254823]
[1753497030312,4.6854,3746.7,3746.6,4.52599]
[1753497030510,2.8256,3746.7,3746.6,4.52599]
[1753497031111,0.8782,3746.7,3746.6,4.52599]
[1753497031411,12.138,3746.8,3746.7,4.52598]
[1753497031804,13.0162,3746.8,3746.7,4.52598]
[1753497032000,14.9636,3746.8,3746.7,4.52598]
[1753497032405,2.8256,3746.8,3746.7,4.52598]
[1753497032610,3.6756,3746.8,3746.7,4.52598]
[1753497032808,1.4636,3746.8,3746.7,4.52598]
[1753497033012,2.8256,3747.1,3747.0,4.52594]
[1753497033711,3.6756,3747.1,3747.0,3.9923]
[1753497033913,3.6756,3747.1,3747.0,4.52594]
[1753497035609,3.6756,3747.1,3747.0,3.9923]
[1753497035804,4.6854,3747.1,3747.0,4.52594]
[1753497036004,6.161,3747.1,3747.0,4.52594]
[1753497037715,4.6854,3747.1,3747.0,4.52594]
[1753497038312,1.4226,3747.4,3747.3,3.03109]
[1753497038510,2.764,3747.7,3747.6,2.10265]
[1753497038717,2.764,3747.7,3747.6,7.68485]
[1753497039010,3.6191,3747.7,3747.6,7.68485]
[1753497039508,4.6296,3747.7,3747.6,7.68485]
[1753497039704,5.35466,3747.6,3747.5,0.53356]
[1753497039909,5.35466,3747.6,3747.2,1.446]
[1753497039910,2.4904,3747.3,3747.2,1.446]
[1753497040115,0.9124,3747.3,3747.2,4.47711]
[1753497040410,1.64592,3747.9,3747.5,3.9435]
[1753497040714,2.3965,3747.9,3747.8,4.47702]
[1753497040909,2.3965,3747.9,3747.8,3.9435]
[1753497041109,5.36311,3747.9,3747.8,3.9435]
[1753497041414,2.45645,3747.7,3747.6,2.3904]
[1753497041608,2.4904,3747.7,3747.6,2.92395]
[1753497041803,2.4904,3747.7,3747.6,3.54865]
[1753497042209,6.1052,3747.7,3747.6,3.54865]
[1753497042409,6.63874,3747.7,3747.6,4.47705]
[1753497042915,6.1052,3747.7,3747.6,4.47705]
[1753497043211,6.63874,3747.7,3747.6,3.0151]
[1753497043510,6.1052,3747.4,3747.3,3.54868]
[1753497044011,6.1052,3747.4,3747.3,4.47708]
[1753497044407,6.63878,3747.4,3747.3,3.54868]
[1753497044613,6.63878,3747.4,3747.3,1.5691]
[1753497045014,6.63878,3747.4,3747.3,3.54869]
[1753497045613,6.63878,3747.4,3747.3,3.0151]
[1753497046010,6.63878,3747.4,3747.3,3.54869]
[1753497046321,3.6191,3747.4,3747.3,4.47709]
[1753497046522,5.36311,3747.9,3747.8,3.9435]
[1753497046723,6.83871,3747.9,3747.8,3.0151]
[1753497047422,6.83871,3747.9,3747.8,3.9435]
[1753497048119,6.83871,3747.9,3747.8,3.0151]
[1753497048326,4.6296,3747.6,3747.5,4.47706]
[1753497048922,0.53353,3747.8,3747.6,2.90794]
[1753497049121,5.16313,3747.8,3747.7,3.9435]
[1753497049323,6.1052,3747.8,3747.7,3.9435]
[1753497049720,6.63872,3747.8,3747.7,3.9435]
[1753497051322,0.2,3747.9,3747.8,4.47702]
[1753497051526,0.2,3747.9,3747.8,7.68482]
[1753497052319,0.2,3747.9,3747.8,12.68482]
[1753497052525,3.6191,3748.5,3748.4,2.10254]
[1753497052719,3.6191,3748.5,3748.4,4.47694]
[1753497053028,3.6191,3748.5,3748.4,3.0151]
[1753497053029,6.63862,3748.5,3748.4,3.0151]
[1753497053217,6.63862,3748.5,3748.4,3.54854]
[1753497053422,6.63862,3748.5,3748.4,3.0151]
[1753497053623,6.63862,3748.5,3748.4,0.9444]
[1753497054030,6.63862,3748.5,3748.4,3.0151]
[1753497054525,6.63862,3748.5,3748.4,3.9435]
[1753497055919,6.63862,3748.5,3748.4,1.5691]
[1753497056124,2.01338,3748.1,3748.0,1.5531]
[1753497056325,4.15258,3748.1,3748.0,1.5531]
[1753497056827,4.15258,3748.1,3748.0,2.08659]
[1753497057530,4.15258,3748.1,3748.0,1.5531]
[1753497057729,3.6191,3748.1,3748.0,2.08659]
[1753497058229,3.2078,3748.8,3748.2,2.08656]
[1753497058230,1.10096,3748.3,3748.2,2.08656]
[1753497058624,3.29746,3748.3,3748.2,1.5531]
[1753497059425,4.15256,3748.3,3748.2,1.5531]
[1753497060029,4.15256,3748.3,3748.2,0.6247]
[1753497060428,0.53349,3748.0,3747.9,0.9284]
[1753497060622,3.0516,3748.4,3748.3,1.5531]
[1753497060828,2.72995,3748.4,3748.3,1.5531]
[1753497061029,1.44585,3748.4,3748.3,1.5531]
[1753497061230,1.44585,3748.4,3748.3,3.03095]
[1753497061422,1.44585,3748.4,3748.3,2.4975]
[1753497061624,5.62815,3748.4,3748.3,2.4975]
[1753497061830,5.62815,3748.4,3748.3,1.5691]
[1753497062134,5.62815,3748.4,3748.3,2.4975]
[1753497065235,3.2078,3749.3,3748.9,1.9162]
[1753497065433,0.58335,3749.0,3748.9,2.507]
[1753497065633,5.97135,3749.0,3748.9,1.0327]
[1753497065932,2.05285,3748.3,3748.2,4.8313]
[1753497066131,5.92145,3748.3,3748.2,1.6235]
[1753497068638,3.8636,3748.3,3748.2,3.04047]
[1753497068837,1.5194,3748.3,3748.2,3.04047]
[1753497069033,2.9299,3748.5,3748.4,3.04044]
[1753497069331,2.9799,3749.0,3748.9,2.15687]
[1753497069639,0.955,3749.0,3748.9,3.04037]
[1753497070132,2.9799,3749.0,3748.9,2.507]
[1753497070337,2.9799,3749.0,3748.9,3.04037]
[1753497070531,4.44695,3749.0,3748.9,2.507]
[1753497070731,5.92138,3748.8,3748.7,3.2078]
[1753497070937,5.92138,3748.8,3747.7,2.7404739]
[1753497070938,5.92141,3748.6,3748.5,1.6235]
[1753497071135,5.388,3748.6,3748.5,2.15692]
[1753497071438,0.955,3749.0,3748.9,3.04037]
[1753497071833,0.05,3749.0,3748.9,3.04037]
[1753497072028,0.05,3749.0,3748.9,3.37690089]
[1753497072337,0.05,3749.0,3748.9,3.04037]
[1753497072525,0.05,3749.0,3748.9,6.24817]
[1753497072726,0.05,3749.0,3748.9,6.58465211]
[1753497072927,0.05,3749.0,3748.9,11.58465211]
[1753497073339,0.05,3749.0,3748.9,6.58465211]
[1753497074339,3.9136,3749.0,3748.9,6.58465211]
[1753497074542,2.9799,3749.0,3748.9,6.58465211]
[1753497074846,5.438,3749.0,3748.9,6.24817]